fUST/lending_fUST_20251002
["ID","MTS","AMOUNT","RATE_DAILY","PERIOD"]
[388739818,1759342268939,-500.0,0.00023287,2]
[388739819,1759342268948,-936.29,0.00023287,2]
[388739820,1759342268958,-529.19,0.00023287,2]
[388739821,1759342268968,-1006.67,0.00023287,2]
[388739822,1759342268977,-500.0,0.00023287,2]
[388739823,1759342268987,-500.0,0.00023287,2]
[388739824,1759342268996,-509.52676893,0.00023287,2]
[388739825,1759342269005,-409.10998064,0.00023287,2]
[388739826,1759342269015,-611.01,0.00023287,2]
[388739827,1759342269024,-2390.09,0.00023287,2]
[388739828,1759342269035,-500.0,0.00023287,2]
[388739829,1759342269045,-1330.39,0.00023287,2]
[388739830,1759342269055,-1326.33,0.00023287,2]
[388739831,1759342269064,-699.45,0.00023287,2]
[388739832,1759342269074,-1136.12,0.00023287,2]
[388739833,1759342269084,-682.72,0.00023287,2]
[388739834,1759342269093,-500.0,0.00023287,2]
[388739835,1759342269104,-1068.12,0.00023287,2]
[388739836,1759342269113,-482.37,0.00023287,2]
[388739837,1759342269123,-877.5,0.00023287,2]
[388739838,1759342269132,-1924.02,0.00023287,2]
[388739839,1759342269142,-1088.76,0.00023287,2]
[388739840,1759342269152,-564.25,0.00023287,2]
[388739841,1759342269162,-633.54,0.00023287,2]
[388739842,1759342269172,-5203.32,0.00023287,2]
[388739843,1759342269181,-722.56,0.00023287,2]
[388739844,1759342269190,-1014.42,0.00023287,2]
[388739845,1759342269200,-500.0,0.00023287,2]
[388739846,1759342269209,-500.0,0.00023287,2]
[388739847,1759342269219,-501.11,0.00023287,2]
[388739848,1759342269228,-500.0,0.00023287,2]
[388739849,1759342269237,-1751.43,0.00023287,2]
[388739850,1759342269247,-500.0,0.00023287,2]
[388739851,1759342269256,-558.3,0.00023287,2]
[388739852,1759342269266,-595.94,0.00023287,2]
[388739853,1759342269366,-500.0,0.00023287,2]
[388739854,1759342269386,-661.13,0.00023287,2]
[388739855,1759342269396,-739.54,0.00023287,2]
[388739856,1759342269406,-500.0,0.00023287,2]
[388739857,1759342269415,-500.0,0.00023287,2]
[388739858,1759342269424,-880.83,0.00023287,2]
[388739859,1759342269433,-823.5,0.00023287,2]
[388739860,1759342269442,-1437.2,0.00023287,2]
[388739861,1759342269451,-634.89,0.00023287,2]
[388739862,1759342269460,-825.35,0.00023287,2]
[388739863,1759342269469,-661.01,0.00023287,2]
[388739864,1759342269479,-1958.89,0.00023287,2]
[388739865,1759342269488,-683.07,0.00023287,2]
[388739866,1759342269498,-500.0,0.00023287,2]
[388739867,1759342269507,-790.83,0.00023287,2]
[388739868,1759342269517,-655.96,0.00023287,2]
[388739869,1759342269526,-345.49,0.00023287,2]
[388739870,1759342269537,-566.82,0.00023287,2]
[388739871,1759342269546,-551.0,0.00023287,2]
[388739872,1759342269556,-501.2,0.00023287,2]
[388739873,1759342269566,-500.0,0.00023287,2]
[388739874,1759342269576,-1385.94,0.00023287,2]
[388739875,1759342269586,-1406.52,0.00023287,2]
[388739876,1759342269596,-2613.49,0.00023287,2]
[388739877,1759342269605,-817.28,0.00023287,2]
[388739878,1759342269615,-1740.98,0.00023287,2]
[388739879,1759342269623,-942.29,0.00023287,2]
[388739880,1759342269633,-500.0,0.00023287,2]
[388739881,1759342269642,-198.0,0.00023288,2]
[388739882,1759342269651,-198.0,0.00023288,2]
[388739883,1759342269660,-198.0,0.00023288,2]
[388739884,1759342269670,-198.0,0.00023288,2]
[388739885,1759342269679,-198.0,0.00023288,2]
[388739886,1759342269688,-198.0,0.00023288,2]
[388739887,1759342269697,-198.0,0.00023288,2]
[388739888,1759342269706,-198.0,0.00023288,2]
[388739889,1759342269716,-500.0,0.00023288,2]
[388739890,1759342269725,-198.0,0.00023288,2]
[388739891,1759342269735,-198.0,0.00023288,2]
[388739892,1759342269744,-151.0,0.00023288,2]
[388739893,1759342269753,-151.0,0.00023288,2]
[388739894,1759342269763,-151.0,0.00023288,2]
[388739895,1759342269772,-151.0,0.00023288,2]
[388739896,1759342269782,-560.0,0.00023292,2]
[388739897,1759342269792,-652.0,0.000233,2]
[388739898,1759342269801,-500.0,0.00023308,2]
[388739899,1759342269810,-500.0,0.00023375,2]
[388739900,1759342269820,-192.0,0.00023403,2]
[388739901,1759342269830,-192.0,0.00023464,2]
[388739902,1759342269844,-1000.0,0.000235,2]
[388739903,1759342269853,-8402.89,0.000235,2]
[388739904,1759342269862,-168.0,0.00023554,2]
[388739905,1759342269871,-150.0,0.00023559,2]
[388739906,1759342269883,-500.0,0.00023561,2]
[388739907,1759342269892,-500.0,0.00023561,2]
[388739908,1759342269901,-500.0,0.00023561,2]
[388739909,1759342269911,-928.86,0.00023561,2]
[388739910,1759342269921,-787.61,0.00023561,2]
[388739911,1759342269931,-1021.25,0.00023561,2]
[388739912,1759342269940,-528.56,0.00023561,2]
[388739913,1759342269949,-500.0,0.00023561,2]
[388739914,1759342269959,-525.78,0.00023561,2]
[388739915,1759342269968,-500.0,0.00023561,2]
[388739916,1759342269978,-500.0,0.00023561,2]
[388739917,1759342269988,-936.29,0.00023561,2]
[388739918,1759342269997,-529.19,0.00023561,2]
[388739919,1759342270007,-1006.67,0.00023561,2]
[388739920,1759342270015,-500.0,0.00023561,2]
[388739921,1759342270025,-500.0,0.00023561,2]
[388739922,1759342270034,-611.01,0.00023561,2]
[388739923,1759342270043,-2390.09,0.00023561,2]
[388739924,1759342270052,-1330.39,0.00023561,2]
[388739925,1759342270061,-500.0,0.00023561,2]
[388739926,1759342270071,-1326.33,0.00023561,2]
[388739927,1759342270080,-699.45,0.00023561,2]
[388739928,1759342270089,-1136.12,0.00023561,2]
[388739929,1759342270099,-682.72,0.00023561,2]
[388739930,1759342270109,-500.0,0.00023561,2]
[388739931,1759342270118,-1068.12,0.00023561,2]
[388739932,1759342270127,-877.5,0.00023561,2]
[388739933,1759342270136,-1924.02,0.00023561,2]
[388739934,1759342270145,-1088.76,0.00023561,2]
[388739935,1759342270155,-564.25,0.00023561,2]
[388739936,1759342270164,-633.54,0.00023561,2]
[388739937,1759342270173,-5203.32,0.00023561,2]
[388739938,1759342270184,-722.56,0.00023561,2]
[388739939,1759342270192,-1014.42,0.00023561,2]
[388739940,1759342270202,-500.0,0.00023561,2]
[388739941,1759342270211,-500.0,0.00023561,2]
[388739942,1759342270222,-501.11,0.00023561,2]
[388739943,1759342270231,-345.72790699,0.00023561,2]
[388739944,1759342270241,-1751.43,0.00023561,2]
[388739945,1759342270250,-498.05,0.00023561,2]
[388739946,1759342270259,-558.3,0.00023561,2]
[388739947,1759342270270,-595.94,0.00023561,2]
[388739948,1759342270279,-500.0,0.00023561,2]
[388739949,1759342270288,-661.13,0.00023561,2]
[388739951,1759342270298,-739.54,0.00023561,2]
[388739952,1759342270306,-500.0,0.00023561,2]
[388739953,1759342270316,-500.0,0.00023561,2]
[388739954,1759342270325,-880.83,0.00023561,2]
[388739955,1759342270334,-823.5,0.00023561,2]
[388739956,1759342270344,-1437.2,0.00023561,2]
[388739957,1759342270353,-634.89,0.00023561,2]
[388739958,1759342270363,-825.35,0.00023561,2]
[388739959,1759342270372,-661.01,0.00023561,2]
[388739960,1759342270381,-429.68140891,0.00023561,2]
[388739961,1759342270892,-500.0,0.00019178,2]
[388739962,1759342270903,-500.0,0.00019178,2]
[388739963,1759342270913,-500.0,0.00019452,2]
[388739964,1759342270923,-420.0,0.00019452,2]
[388739965,1759342270936,-312.07387211,0.00019726,2]
[388739966,1759342270946,-164.473959,0.0002,2]
[388739967,1759342270955,-164.473959,0.0002,2]
[388739968,1759342270964,-164.473959,0.00020821,2]
[388739969,1759342270978,-164.473959,0.00020821,2]
[388739970,1759342270988,-428.711,0.00021644,2]
[388739971,1759342270997,-164.473959,0.00021859,2]
[388739972,1759342271008,-164.473959,0.00021859,2]
[388739973,1759342271017,-164.473959,0.00023,7]
[388739974,1759342271126,-164.473959,0.00023,7]
[388739975,1759342271136,-1529.20859109,0.00023561,2]
[388739976,1759342271145,-683.07,0.00023561,2]
[388739977,1759342271155,-500.0,0.00023561,2]
[388739978,1759342271163,-790.83,0.00023561,2]
[388739979,1759342271173,-655.96,0.00023561,2]
[388739980,1759342271182,-566.82,0.00023561,2]
[388739981,1759342271191,-551.0,0.00023561,2]
[388739982,1759342271200,-501.2,0.00023561,2]
[388739983,1759342271209,-205.36266317,0.00023561,2]
[388739984,1759342271218,-1385.94,0.00023561,2]
[388739985,1759342271227,-1406.52,0.00023561,2]
[388739986,1759342271238,-2613.49,0.00023561,2]
[388739987,1759342271247,-817.28,0.00023561,2]
[388739988,1759342271256,-1740.98,0.00023561,2]
[388739989,1759342271266,-942.29,0.00023561,2]
[388739990,1759342271275,-298.16,0.00023561,2]
[388739991,1759342271284,-900.0,0.00023562,2]
[388739992,1759342271293,-500.0,0.00023562,2]
[388739993,1759342271302,-151.0,0.00023562,2]
[388739994,1759342271311,-292.0,0.00023562,2]
[388739995,1759342271321,-292.0,0.00023562,2]
[388739996,1759342271330,-245.0,0.00023562,2]
[388739997,1759342271339,-1500.0,0.00023574,2]
[388739998,1759342271348,-192.0,0.00023591,2]
[388739999,1759342271358,-131.78746674,0.000236,7]
[388740000,1759342271368,-160.0,0.000236,7]
[388740001,1759342271377,-192.0,0.00023648,2]
[388740002,1759342271386,-864.0,0.00023667,20]
[388740003,1759342271395,-250.0,0.00023792,2]
[388740004,1759342271405,-192.0,0.00023792,2]
[388740005,1759342271415,-250.0,0.000238,2]
[388740006,1759342271425,-4000.0,0.00023808,2]
[388740007,1759342271435,-500.0,0.00023835,2]
[388740008,1759342271444,-500.0,0.00023835,2]
[388740009,1759342271454,-928.86,0.00023835,2]
[388740010,1759342271463,-787.61,0.00023835,2]
[388740011,1759342271473,-1021.25,0.00023835,2]
[388740012,1759342271482,-528.56,0.00023835,2]
[388740013,1759342271490,-500.0,0.00023835,2]
[388740014,1759342271499,-525.78,0.00023835,2]
[388740015,1759342271509,-500.0,0.00023835,2]
[388740016,1759342271517,-500.0,0.00023835,2]
[388740017,1759342271527,-936.29,0.00023835,2]
[388740018,1759342271536,-529.19,0.00023835,2]
[388740019,1759342271546,-1006.67,0.00023835,2]
[388740020,1759342271555,-267.64152873,0.00023835,2]
[388740021,1759342271565,-500.0,0.00023835,2]
[388740022,1759342271575,-611.01,0.00023835,2]
[388740023,1759342271585,-2390.09,0.00023835,2]
[388740024,1759342271594,-1330.39,0.00023835,2]
[388740025,1759342271604,-1326.33,0.00023835,2]
[388740026,1759342271614,-699.45,0.00023835,2]
[388740027,1759342271623,-1136.12,0.00023835,2]
[388740028,1759342271634,-682.72,0.00023835,2]
[388740029,1759342271643,-500.0,0.00023835,2]
[388740030,1759342271652,-1068.12,0.00023835,2]
[388740031,1759342271662,-877.5,0.00023835,2]
[388740032,1759342271671,-1924.02,0.00023835,2]
[388740033,1759342271681,-1088.76,0.00023835,2]
[388740034,1759342271692,-564.25,0.00023835,2]
[388740035,1759342271702,-633.54,0.00023835,2]
[388740036,1759342271712,-5203.32,0.00023835,2]
[388740037,1759342271722,-722.56,0.00023835,2]
[388740038,1759342271731,-1014.42,0.00023835,2]
[388740039,1759342271741,-500.0,0.00023835,2]
[388740040,1759342271750,-500.0,0.00023835,2]
[388740041,1759342271759,-501.11,0.00023835,2]
[388740042,1759342271767,-1751.43,0.00023835,2]
[388740043,1759342271777,-558.3,0.00023835,2]
[388740044,1759342271787,-595.94,0.00023835,2]
[388740045,1759342271796,-500.0,0.00023835,2]
[388740046,1759342271806,-661.13,0.00023835,2]
[388740047,1759342271815,-739.54,0.00023835,2]
[388740048,1759342271824,-500.0,0.00023835,2]
[388740049,1759342271838,-500.0,0.00023835,2]
[388740050,1759342271847,-880.83,0.00023835,2]
[388740051,1759342271857,-823.5,0.00023835,2]
[388740052,1759342271866,-1437.2,0.00023835,2]
[388740053,1759342271875,-634.89,0.00023835,2]
[388740054,1759342271885,-825.35,0.00023835,2]
[388740055,1759342271895,-661.01,0.00023835,2]
[388740056,1759342271906,-1958.89,0.00023835,2]
[388740057,1759342271916,-683.07,0.00023835,2]
[388740058,1759342271926,-500.0,0.00023835,2]
[388740059,1759342271935,-790.83,0.00023835,2]
[388740060,1759342271944,-655.96,0.00023835,2]
[388740061,1759342271953,-566.82,0.00023835,2]
[388740062,1759342271963,-551.0,0.00023835,2]
[388740063,1759342271972,-501.2,0.00023835,2]
[388740064,1759342271982,-1385.94,0.00023835,2]
[388740065,1759342271992,-1406.52,0.00023835,2]
[388740066,1759342272001,-2613.49,0.00023835,2]
[388740067,1759342272010,-817.28,0.00023835,2]
[388740068,1759342272019,-1740.98,0.00023835,2]
[388740069,1759342272028,-942.29,0.00023835,2]
[388740070,1759342272037,-500.0,0.00023836,2]
[388740071,1759342272047,-151.0,0.00023836,2]
[388740072,1759342272056,-660.0,0.0002384,2]
[388740073,1759342272066,-150.0,0.00023915,2]
[388740074,1759342272075,-192.0,0.00023957,2]
[388740075,1759342272085,-4000.0,0.00024,4]
[388740076,1759342272094,-13395.03531338,0.00024,2]
[388740077,1759342272106,-386.72464061,0.00024,2]
[388740078,1759342272115,-25505.0,0.00024,7]
[388740079,1759342272124,-233.9640895,0.00024,7]
[388740080,1759342272134,-160.0,0.00024,7]
[388740081,1759342272142,-8000.0,0.00024,2]
[388740082,1759342272152,-250.0,0.00024,2]
[388740083,1759342272166,-250.0,0.00024,2]
[388740084,1759342272176,-251.6,0.00024,2]
[388740085,1759342272185,-160.0,0.00024,7]
[388740086,1759342272195,-160.0,0.00024,7]
[388740087,1759342272204,-160.0,0.00024,7]
[388740088,1759342272214,-150.0,0.00024,10]
[388740089,1759342272223,-153.586922,0.0002403,7]
[388740090,1759342272232,-192.0,0.00024058,2]
[388740091,1759342272242,-10419.83564526,0.00024058,2]
[388740092,1759342272251,-192.0,0.00024066,2]
[388740093,1759342272260,-150.0,0.00024077,2]
[388740094,1759342272269,-200.0,0.000241,7]
[388740095,1759342272279,-500.0,0.00024109,2]
[388740096,1759342272289,-500.0,0.00024109,2]
[388740097,1759342272298,-928.86,0.00024109,2]
[388740098,1759342272307,-200.0,0.00024109,2]
[388740099,1759342272316,-200.0,0.00024109,2]
[388740100,1759342272325,-200.0,0.00024109,2]
[388740101,1759342272335,-200.0,0.00024109,2]
[388740102,1759342272345,-200.0,0.00024109,2]
[388740103,1759342272354,-200.0,0.00024109,2]
[388740104,1759342272364,-200.0,0.00024109,2]
[388740105,1759342272373,-200.0,0.00024109,2]
[388740106,1759342272383,-200.0,0.00024109,2]
[388740107,1759342272392,-200.0,0.00024109,2]
[388740108,1759342272402,-200.0,0.00024109,2]
[388740109,1759342272412,-200.0,0.00024109,2]
[388740110,1759342272421,-200.0,0.00024109,2]
[388740111,1759342272431,-787.61,0.00024109,2]
[388740112,1759342272440,-200.0,0.00024109,2]
[388740113,1759342272450,-200.0,0.00024109,2]
[388740114,1759342272460,-200.0,0.00024109,2]
[388740115,1759342272470,-200.0,0.00024109,2]
[388740116,1759342272480,-200.0,0.00024109,2]
[388740117,1759342272489,-200.0,0.00024109,2]
[388740118,1759342272501,-1021.25,0.00024109,2]
[388740119,1759342272510,-528.56,0.00024109,2]
[388740120,1759342272519,-500.0,0.00024109,2]
[388740121,1759342272528,-525.78,0.00024109,2]
[388740122,1759342272537,-500.0,0.00024109,2]
[388740123,1759342272546,-500.0,0.00024109,2]
[388740124,1759342272556,-936.29,0.00024109,2]
[388740125,1759342272565,-529.19,0.00024109,2]
[388740126,1759342272574,-1006.67,0.00024109,2]
[388740127,1759342272583,-500.0,0.00024109,2]
[388740128,1759342272597,-611.01,0.00024109,2]
[388740129,1759342272606,-2390.09,0.00024109,2]
[388740130,1759342272615,-1330.39,0.00024109,2]
[388740131,1759342272625,-1326.33,0.00024109,2]
[388740132,1759342272634,-699.45,0.00024109,2]
[388740133,1759342272643,-1136.12,0.00024109,2]
[388740134,1759342272653,-682.72,0.00024109,2]
[388740135,1759342272662,-168.62,0.00024109,2]
[388740136,1759342272672,-1068.12,0.00024109,2]
[388740137,1759342272681,-877.5,0.00024109,2]
[388740138,1759342272691,-1924.02,0.00024109,2]
[388740139,1759342272700,-1088.76,0.00024109,2]
[388740140,1759342272710,-564.25,0.00024109,2]
[388740141,1759342272719,-633.54,0.00024109,2]
[388740142,1759342272728,-5203.32,0.00024109,2]
[388740143,1759342272737,-722.56,0.00024109,2]
[388740144,1759342272747,-1014.42,0.00024109,2]
[388740145,1759342272757,-500.0,0.00024109,2]
[388740146,1759342272766,-500.0,0.00024109,2]
[388740147,1759342272868,-501.11,0.00024109,2]
[388740148,1759342272879,-1751.43,0.00024109,2]
[388740149,1759342272890,-558.3,0.00024109,2]
[388740150,1759342272900,-595.94,0.00024109,2]
[388740151,1759342272909,-500.0,0.00024109,2]
[388740152,1759342272918,-661.13,0.00024109,2]
[388740153,1759342272927,-739.54,0.00024109,2]
[388740154,1759342272936,-500.0,0.00024109,2]
[388740155,1759342272945,-367.2336852,0.00024109,2]
[388740156,1759342272955,-880.83,0.00024109,2]
[388740157,1759342272965,-823.5,0.00024109,2]
[388740158,1759342272974,-1437.2,0.00024109,2]
[388740159,1759342272983,-634.89,0.00024109,2]
[388740160,1759342272992,-825.35,0.00024109,2]
[388740161,1759342273002,-661.01,0.00024109,2]
[388740162,1759342273011,-1958.89,0.00024109,2]
[388740163,1759342273020,-683.07,0.00024109,2]
[388740164,1759342273029,-500.0,0.00024109,2]
[388740165,1759342273039,-790.83,0.00024109,2]
[388740166,1759342273048,-655.96,0.00024109,2]
[388740167,1759342273058,-566.82,0.00024109,2]
[388740168,1759342273067,-551.0,0.00024109,2]
[388740169,1759342273076,-501.2,0.00024109,2]
[388740170,1759342273085,-1385.94,0.00024109,2]
[388740171,1759342273094,-1406.52,0.00024109,2]
[388740172,1759342273104,-2613.49,0.00024109,2]
[388740173,1759342273113,-817.28,0.00024109,2]
[388740174,1759342273123,-1740.98,0.00024109,2]
[388740175,1759342273132,-942.29,0.00024109,2]
[388740176,1759342273140,-900.0,0.0002411,2]
[388740177,1759342273150,-500.0,0.0002411,2]
[388740178,1759342273159,-188.0,0.0002411,2]
[388740179,1759342273168,-228.791014,0.00024111,7]
[388740180,1759342273177,-228.791014,0.00024111,7]
[388740181,1759342273187,-228.791014,0.00024111,7]
[388740182,1759342273196,-228.791014,0.00024111,7]
[388740183,1759342273205,-1800.0,0.00024122,2]
[388740184,1759342273214,-6558.39135094,0.00024236,7]
[388740185,1759342273223,-151.0,0.00024236,7]
[388740186,1759342273232,-151.0,0.00024236,7]
[388740187,1759342273242,-151.0,0.00024236,7]
[388740188,1759342273250,-164.473959,0.00024236,7]
[388740189,1759342273259,-164.473959,0.00024236,7]
[388740190,1759342273268,-164.473959,0.00024236,7]
[388740191,1759342273277,-164.473959,0.00024236,7]
[388740192,1759342273286,-150.0,0.00024271,2]
[388740193,1759342273296,-1000.0,0.000243,2]
[388740194,1759342273305,-1000.0,0.000243,2]
[388740195,1759342273315,-1000.0,0.000243,2]
[388740196,1759342273324,-1000.0,0.000243,2]
[388740197,1759342273333,-1000.0,0.000243,2]
[388740198,1759342273351,-1000.0,0.000243,2]
[388740199,1759342273360,-1000.0,0.000243,2]
[388740200,1759342273369,-1000.0,0.000243,2]
[388740201,1759342273377,-1000.0,0.000243,2]
[388740202,1759342273386,-1000.0,0.000243,2]
[388740203,1759342273395,-279.389075,0.000243,7]
[388740204,1759342273404,-279.389075,0.000243,7]
[388740205,1759342273413,-279.389075,0.000243,7]
[388740206,1759342273422,-151.0,0.000243,7]
[388740207,1759342273431,-279.389075,0.000243,7]
[388740208,1759342273440,-151.0,0.000243,7]
[388740209,1759342273449,-151.0,0.000243,7]
[388740210,1759342273458,-151.0,0.000243,7]
[388740211,1759342273468,-4500.0,0.00024356,2]
[388740212,1759342273477,-153.586922,0.00024372,3]
[388740213,1759342273486,-12500.0,0.00024383,7]
[388740214,1759342273495,-151.0,0.00024383,7]
[388740215,1759342273504,-500.0,0.00024383,2]
[388740216,1759342273513,-500.0,0.00024383,2]
[388740217,1759342273521,-928.86,0.00024383,2]
[388740218,1759342273530,-215.061325,0.00024383,7]
[388740219,1759342273539,-215.061325,0.00024383,7]
[388740220,1759342273549,-215.061325,0.00024383,7]
[388740221,1759342273558,-215.061325,0.00024383,7]
[388740222,1759342273567,-787.61,0.00024383,2]
[388740223,1759342273577,-200.0,0.00024383,2]
[388740224,1759342273586,-1021.25,0.00024383,2]
[388740225,1759342273596,-437.06230506,0.00024383,2]
[388740226,1759342273610,-91.49769494,0.00024383,2]
[388740227,1759342273620,-198.69093922,0.00024383,2]
[388740228,1759342273736,666.0,0.00018587,2]
[388740229,1759342273762,5000.0,0.00019078,2]
[388740230,1759342275297,-112.21889995,0.00024383,2]
[388740231,1759342275308,-189.09016083,0.00024383,2]
[388740232,1759342275317,-525.78,0.00024383,2]
[388740233,1759342275327,-464.91,0.00024383,2]
[388740234,1759342275335,-500.0,0.00024383,2]
[388740235,1759342275344,-936.29,0.00024383,2]
[388740236,1759342275353,-529.19,0.00024383,2]
[388740237,1759342275362,-1006.67,0.00024383,2]
[388740238,1759342275371,-500.0,0.00024383,2]
[388740239,1759342275380,-151.0,0.00024383,7]
[388740240,1759342275390,-611.01,0.00024383,2]
[388740241,1759342275400,-2390.09,0.00024383,2]
[388740242,1759342275409,-791.96983953,0.00024383,2]
[388740243,1759342275720,4334.01,0.00018978,2]
[388740244,1759342275742,10000.01,0.00018978,2]
[388740245,1759342275764,10000.01,0.00018978,2]
[388740246,1759342275786,10000.01,0.00018978,2]
[388740247,1759342275808,10000.01,0.00018978,2]
[388740248,1759342275833,10000.01,0.00018978,2]
[388740249,1759342275861,10000.01,0.00018978,2]
[388740250,1759342275885,10000.01,0.00018978,2]
[388740251,1759342275907,10000.01,0.00018978,2]
[388740252,1759342275930,10000.01,0.00018978,2]
[388740253,1759342276050,275665.9,0.00018978,2]
[388740254,1759342276791,-500.0,0.00019173,2]
[388740255,1759342276829,-480.0,0.00019178,2]
[388740256,1759342276877,-476.89595442,0.00019178,2]
[388740257,1759342282746,5000.0,0.00019008,2]
[388740258,1759342291623,5000.0,0.00019078,2]
[388740259,1759342299659,4100.01,0.00019078,2]
[388740260,1759342307596,900.0,0.00019078,2]
[388740261,1759342307619,4100.0,0.00019078,2]
[388740262,1759342311272,493.52154283,0.00019077,2]
[388740263,1759342313411,500.0,0.00019077,2]
[388740264,1759342313463,544.18328201,0.00019077,2]
[388740265,1759342316636,4362.30517516,0.00019078,2]
[388740266,1759342316656,637.69482484,0.00019078,2]
[388740267,1759342317304,477.72170181,0.00019078,2]
[388740268,1759342324249,361.45936295,0.00018973,2]
[388740269,1759342332359,5000.0,0.00019078,2]
[388740271,1759342340122,3523.1341104,0.00019078,2]
[388740272,1759342340146,1476.8658896,0.00019078,2]
[388740273,1759342348168,500.0,0.00027397,120]
[388740274,1759342355304,5000.0,0.00019078,2]
[388740276,1759342364244,3523.1441104,0.00019078,2]
[388740277,1759342364265,1476.8558896,0.00019078,2]
[388740278,1759342379561,5000.0,0.00019078,2]
[388740280,1759342387457,3523.1541104,0.00019078,2]
[388740281,1759342387480,1476.8458896,0.00019078,2]
[388740283,1759342402633,5000.0,0.00019078,2]
[388740284,1759342410391,3523.1641104,0.00019078,2]
[388740285,1759342410413,1476.8358896,0.00019078,2]
[388740286,1759342413232,159.24056729,0.00019077,2]
[388740287,1759342413516,159.24056729,0.00019078,2]
[388740288,1759342414463,8204.69297582,0.00018978,2]
[388740289,1759342414486,10000.01,0.00018978,2]
[388740290,1759342414508,10000.01,0.00018978,2]
[388740291,1759342414532,10000.01,0.00018978,2]
[388740292,1759342414554,10000.01,0.00018978,2]
[388740293,1759342414576,10000.01,0.00018978,2]
[388740294,1759342414597,10000.01,0.00018978,2]
[388740295,1759342414620,10000.01,0.00018978,2]
[388740296,1759342414641,10000.01,0.00018978,2]
[388740297,1759342414662,10000.01,0.00018978,2]
[388740298,1759342414688,271795.21702418,0.00018978,2]
[388740299,1759342424219,1319.441834,0.00018545,2]
[388740301,1759342426533,5000.0,0.00019008,2]
[388740302,1759342435399,5000.0,0.00019008,2]
[388740303,1759342436056,-476.89595442,0.00019078,2]
[388740304,1759342443743,2232.57380446,0.00019008,2]
[388740305,1759342447833,-170.6148935,0.00019077,2]
[388740306,1759342447854,-329.3851065,0.00019078,2]
[388740307,1759342449355,-194.41893908,0.00019078,2]
[388740308,1759342459649,5000.0,0.00019008,2]
[388740310,1759342481678,5000.0,0.00019008,2]
[388740311,1759342488559,172.0,9.3e-07,2]
[388740312,1759342489586,172.0,9.3e-07,2]
[388740313,1759342490617,172.0,9.3e-07,2]
[388740314,1759342503713,5000.0,0.00019008,2]
[388740316,1759342521502,933.81401307,0.00018993,2]
[388740317,1759342525586,1490.24921648,0.00019008,2]
[388740318,1759342544656,-285.58106092,0.00019078,2]
[388740320,1759342553738,-500.0,0.00019078,2]
[388740322,1759342559210,7718.1416715,0.00018177,2]
[388740326,1759342585502,219.28967742,0.00018993,2]
[388740328,1759342644450,838.3538081,0.00018177,2]
[388740329,1759342648851,5000.0,0.00019008,2]
[388740330,1759342657831,500.0,0.00027397,120]
[388740331,1759342671300,5000.0,0.00019008,2]